{"text_format":"3","workbook":"xlsx","n_sheets":1,"sheets":["Vérnyomás és vércukor"],"not_rendered":{"defined_names":9},"read":"whole","date_system":"1900"}

{"sheet":"Vérnyomás és vércukor","index":0,"n_rows":13,"n_cols":11,"rows_kept":13,"merged":[[0,1,4,3],[0,4,0,9],[1,4,1,6],[1,7,1,9]]}
[null,"Vérnyomás- és vércukornapló",null,null,"Az alábbi E2–J5 cellatartományban lévő értékeket testre szabhatja."]
[{"$nulls":4},"VÉRNYOMÁS",null,null,"VÉRCUKORSZINT"]
[{"$nulls":4},120,"SZISZTOLÉS",140,70,100,150]
[{"$nulls":4},80,"DIASZTOLÉS",90,"ALACSONY","NORMÁL","MAGAS"]
[{"$nulls":4},"IDEÁLIS ÉRTÉK",null,"ORVOST HÍVNI"]
[null,"Dátum","Időpont","Körülmény","Szisztolés","Diasztolés","Pulzus","Vércukor","Szint","Állapot","Megjegyzések"]
[null,{"$f":"TODAY()","v":"2022-08-05"},"06:00:00","Ébredés",129,79,72,55,{"$f":"VérnyomásÉsVércukor[[#This Row],[Vércukor]]","v":55},{"$f":"IFERROR(IF(VérnyomásÉsVércukor[[#This Row],[Szint]]=0,\"\",IF(VérnyomásÉsVércukor[[#This Row],[Szint]]<=CAlacsony,\"Alacsony\",IF(AND(VérnyomásÉsVércukor[[#This Row],[Szint]]>CAlacsony,VérnyomásÉsVércukor[[#This Row],[Szint]]<CMagas),\"NormáL\",\"Magas\"))), \"\")","v":"Alacsony"}]
[null,{"$f":"TODAY()","v":"2022-08-05"},"07:00:00","Étkezés előtt",120,80,74,70,{"$f":"VérnyomásÉsVércukor[[#This Row],[Vércukor]]","v":70},{"$f":"IFERROR(IF(VérnyomásÉsVércukor[[#This Row],[Szint]]=0,\"\",IF(VérnyomásÉsVércukor[[#This Row],[Szint]]<=CAlacsony,\"Alacsony\",IF(AND(VérnyomásÉsVércukor[[#This Row],[Szint]]>CAlacsony,VérnyomásÉsVércukor[[#This Row],[Szint]]<CMagas),\"NormáL\",\"Magas\"))), \"\")","v":"Alacsony"}]
[null,"2022-08-05","09:00:00","Étkezés után",133,80,75,75,{"$f":"VérnyomásÉsVércukor[[#This Row],[Vércukor]]","v":75},{"$f":"IFERROR(IF(VérnyomásÉsVércukor[[#This Row],[Szint]]=0,\"\",IF(VérnyomásÉsVércukor[[#This Row],[Szint]]<=CAlacsony,\"Alacsony\",IF(AND(VérnyomásÉsVércukor[[#This Row],[Szint]]>CAlacsony,VérnyomásÉsVércukor[[#This Row],[Szint]]<CMagas),\"NormáL\",\"Magas\"))), \"\")","v":"NormáL"}]
[null,"2022-08-05","10:00:00","Csak vérnyomás",143,91,75,190,{"$f":"VérnyomásÉsVércukor[[#This Row],[Vércukor]]","v":190},{"$f":"IFERROR(IF(VérnyomásÉsVércukor[[#This Row],[Szint]]=0,\"\",IF(VérnyomásÉsVércukor[[#This Row],[Szint]]<=CAlacsony,\"Alacsony\",IF(AND(VérnyomásÉsVércukor[[#This Row],[Szint]]>CAlacsony,VérnyomásÉsVércukor[[#This Row],[Szint]]<CMagas),\"NormáL\",\"Magas\"))), \"\")","v":"Magas"}]
[null,"2022-08-05","12:00:00","Étkezés előtt",141,84,70,140,{"$f":"VérnyomásÉsVércukor[[#This Row],[Vércukor]]","v":140},{"$f":"IFERROR(IF(VérnyomásÉsVércukor[[#This Row],[Szint]]=0,\"\",IF(VérnyomásÉsVércukor[[#This Row],[Szint]]<=CAlacsony,\"Alacsony\",IF(AND(VérnyomásÉsVércukor[[#This Row],[Szint]]>CAlacsony,VérnyomásÉsVércukor[[#This Row],[Szint]]<CMagas),\"NormáL\",\"Magas\"))), \"\")","v":"NormáL"}]
[null,{"$f":"TODAY()","v":"2022-08-05"},"15:00:00","Étkezés után",132,80,68,90,{"$f":"VérnyomásÉsVércukor[[#This Row],[Vércukor]]","v":90},{"$f":"IFERROR(IF(VérnyomásÉsVércukor[[#This Row],[Szint]]=0,\"\",IF(VérnyomásÉsVércukor[[#This Row],[Szint]]<=CAlacsony,\"Alacsony\",IF(AND(VérnyomásÉsVércukor[[#This Row],[Szint]]>CAlacsony,VérnyomásÉsVércukor[[#This Row],[Szint]]<CMagas),\"NormáL\",\"Magas\"))), \"\")","v":"NormáL"},"Étkezés közben bevettem a vérnyomáscsökkentőt"]
[null,"Átlag",null,null,{"$f":"SUBTOTAL(101,VérnyomásÉsVércukor[Szisztolés])","v":133},{"$f":"SUBTOTAL(101,VérnyomásÉsVércukor[Diasztolés])","v":{"v":82.33333333333333,"d":"82"}},{"$f":"SUBTOTAL(101,VérnyomásÉsVércukor[Pulzus])","v":{"v":72.33333333333333,"d":"72"}},{"$f":"SUBTOTAL(101,VérnyomásÉsVércukor[Vércukor])","v":{"v":103.33333333333333,"d":"103"}}]